fUSD/lending_fUSD_20240428
["ID","MTS","AMOUNT","RATE_DAILY","PERIOD"]
[15707,1714329064298,-836.74,0.00011232,2]
[15708,1714329064307,-500.0,0.00011232,2]
[15709,1714329064317,-500.0,0.00011232,2]
[15710,1714329064327,-1120.64,0.00011232,2]
[15711,1714329064336,-529.48,0.00011232,2]
[15713,1714329064354,-207.26213615,0.00011232,2]
[15715,1714329064373,-710.13,0.00011232,2]
[15717,1714329064393,-500.0,0.00011232,2]
[15718,1714329064403,-500.0,0.00011232,2]
[15719,1714329064412,-500.0,0.00011232,2]
[15720,1714329064422,-500.0,0.00011232,2]
[15721,1714329064432,-500.0,0.00011232,2]
[15722,1714329064442,-1298.79,0.00011232,2]
[15723,1714329064452,-777.85,0.00011232,2]
[15724,1714329064461,-1163.95,0.00011232,2]
[15725,1714329064471,-500.0,0.00011232,2]
[15726,1714329064481,-1171.06,0.00011232,2]
[15727,1714329064491,-500.0,0.00011232,2]
[15728,1714329064500,-500.0,0.00011232,2]
[15729,1714329064511,-500.0,0.00011232,2]
[15730,1714329064520,-690.62,0.00011232,2]
[15731,1714329064530,-500.0,0.00011232,2]
[15732,1714329064540,-782.58,0.00011232,2]
[15733,1714329064550,-681.46,0.00011232,2]
[15734,1714329064559,-500.0,0.00011232,2]
[15735,1714329064569,-500.0,0.00011232,2]
[15736,1714329064580,-741.3,0.00011232,2]
[15737,1714329064589,-500.0,0.00011232,2]
[15739,1714329064607,-511.00557865,0.00011232,2]
[15740,1714329064617,-1031.54,0.00011232,2]
[15741,1714329064627,-523.34,0.00011232,2]
[15743,1714329064646,-500.0,0.00011232,2]
[15745,1714329064668,-500.0,0.00011232,2]
[15747,1714329064687,-500.0,0.00011232,2]
[15749,1714329064707,-500.0,0.00011232,2]
[15751,1714329064726,-518.83,0.00011232,2]
[15753,1714329064746,-500.0,0.00011232,2]
[15755,1714329064766,-500.0,0.00011232,2]
[15757,1714329064785,-500.0,0.00011232,2]
[15759,1714329064803,-500.0,0.00011232,2]
[15761,1714329064823,-500.0,0.00011232,2]
[15763,1714329064844,-1027.6,0.00011232,2]
[15765,1714329064863,-500.0,0.00011232,2]
[15767,1714329064883,-500.0,0.00011232,2]
[15769,1714329064903,-1205.63,0.00011232,2]
[15771,1714329065192,-500.0,0.00011232,2]
[15773,1714329065213,-501.33111799,0.00011232,2]
[15775,1714329065232,-681.62,0.00011232,2]
[15776,1714329065242,-500.0,0.00011232,2]
[15777,1714329065252,-500.0,0.00011232,2]
[15778,1714329065261,-500.0,0.00011232,2]
[15779,1714329065271,-500.0,0.00011232,2]
[15780,1714329065280,-500.0,0.00011232,2]
[15781,1714329065291,-500.0,0.00011232,2]
[15782,1714329065301,-4457.04,0.00011232,2]
[15783,1714329065311,-500.0,0.00011232,2]
[15784,1714329065321,-576.16,0.00011232,2]
[15785,1714329065332,-500.0,0.00011232,2]
[15786,1714329065342,-1329.23,0.00011232,2]
[15787,1714329065351,-724.03,0.00011232,2]
[15788,1714329065361,-500.0,0.00011232,2]
[15789,1714329065370,-500.0,0.00011232,2]
[15790,1714329065380,-500.0,0.00011232,2]
[15791,1714329065390,-842.42,0.00011232,2]
[15792,1714329065400,-720.89,0.00011232,2]
[15793,1714329065410,-887.92,0.00011232,2]
[15794,1714329065420,-9567.9,0.00011232,2]
[15795,1714329065430,-1491.73,0.00011232,2]
[15797,1714329065450,-500.0,0.00011232,2]
[15799,1714329065471,-500.0,0.00011232,2]
[15801,1714329065491,-701.3,0.00011232,2]
[15803,1714329065512,-1067.66,0.00011232,2]
[15805,1714329065532,-1014.05,0.00011232,2]
[15807,1714329065551,-869.17,0.00011232,2]
[15809,1714329065570,-500.0,0.00011232,2]
[15811,1714329065591,-829.31,0.00011232,2]
[15812,1714329065600,-865.55,0.00011232,2]
[15813,1714329065609,-500.0,0.00011232,2]
[15814,1714329065618,-500.0,0.00011232,2]
[15815,1714329065629,-500.0,0.00011232,2]
[15816,1714329065639,-602.41,0.00011232,2]
[15817,1714329065648,-500.0,0.00011232,2]
[15818,1714329065658,-500.0,0.00011232,2]
[15819,1714329065671,-500.0,0.00011232,2]
[15821,1714329065696,-500.0,0.00011232,2]
[15823,1714329065728,-558.66,0.00011232,2]
[15825,1714329065751,-500.0,0.00011232,2]
[15827,1714329065771,-500.0,0.00011232,2]
[15828,1714329065780,-1059.92,0.00011232,2]
[15829,1714329065790,-500.0,0.00011232,2]
[15831,1714329065808,-500.0,0.00011232,2]
[15833,1714329065827,-769.55,0.00011232,2]
[15835,1714329065847,-500.0,0.00011232,2]
[15837,1714329065865,-500.0,0.00011232,2]
[15839,1714329065884,-545.7,0.00011232,2]
[15841,1714329065903,-1056.93,0.00011232,2]
[15843,1714329065921,-500.0,0.00011232,2]
[15845,1714329065940,-500.0,0.00011232,2]
[15847,1714329065959,-500.0,0.00011232,2]
[15849,1714329065978,-720.54,0.00011232,2]
[15851,1714329065997,-500.0,0.00011232,2]
[15853,1714329066034,-500.0,0.00011232,2]
[15855,1714329066054,-500.0,0.00011232,2]
[15857,1714329066074,-500.0,0.00011232,2]
[15859,1714329066094,-1191.82,0.00011232,2]
[15861,1714329066115,-613.02,0.00011232,2]
[15863,1714329066134,-500.0,0.00011232,2]
[15865,1714329066153,-500.0,0.00011232,2]
[15867,1714329066171,-500.0,0.00011232,2]
[15869,1714329066190,-1032.47,0.00011232,2]
[15871,1714329066208,-533.47,0.00011232,2]
[15872,1714329066218,-628.51,0.00011232,2]
[15873,1714329066227,-804.06,0.00011232,2]
[15874,1714329066236,-151.0,0.00011232,2]
[15875,1714329066246,-500.0,0.00011232,2]
[15877,1714329066264,-500.0,0.00011232,2]
[15879,1714329066282,-500.0,0.00011232,2]
[15880,1714329066291,-676.7,0.00011232,2]
[15881,1714329066301,-500.0,0.00011232,2]
[15882,1714329066310,-500.0,0.00011232,2]
[15883,1714329066319,-500.0,0.00011232,2]
[15884,1714329066329,-500.0,0.00011232,2]
[15885,1714329066338,-500.0,0.00011232,2]
[15886,1714329066348,-559.35,0.00011232,2]
[15887,1714329066358,-500.0,0.00011232,2]
[15889,1714329066377,-500.0,0.00011232,2]
[15890,1714329066387,-2989.37,0.00011232,2]
[15891,1714329066398,-952.74,0.00011232,2]
[15892,1714329066408,-1650.98,0.00011232,2]
[15893,1714329066418,-2067.73,0.00011232,2]
[15894,1714329066427,-500.0,0.00011232,2]
[15895,1714329066436,-500.0,0.00011232,2]
[15896,1714329066446,-849.7,0.00011232,2]
[15897,1714329066456,-500.0,0.00011232,2]
[15899,1714329066474,-554.98,0.00011232,2]
[15901,1714329066493,-511.98821885,0.00011232,2]
[15903,1714329066512,-690.12,0.00011232,2]
[15905,1714329066531,-500.0,0.00011232,2]
[15907,1714329066551,-500.0,0.00011232,2]
[15909,1714329066569,-500.0,0.00011232,2]
[15911,1714329066588,-1325.99,0.00011232,2]
[15913,1714329066606,-500.0,0.00011232,2]
[15915,1714329066625,-500.0,0.00011232,2]
[15917,1714329066642,-4948.32,0.00011232,2]
[15919,1714329066662,-1935.97,0.00011232,2]
[15921,1714329066683,-500.0,0.00011232,2]
[15922,1714329066692,-526.88,0.00011232,2]
[15923,1714329066702,-890.9,0.00011232,2]
[15925,1714329066720,-904.32,0.00011232,2]
[15927,1714329066738,-28845.76,0.00011232,2]
[15928,1714329066748,-500.0,0.00011232,2]
[15929,1714329066757,-502.31309168,0.00011232,2]
[15930,1714329066765,-930.38,0.00011232,2]
[15931,1714329066774,-2847.3,0.00011232,2]
[15933,1714329066792,-2955.84,0.00011232,2]
[15934,1714329066802,-500.0,0.00011232,2]
[15935,1714329066810,-608.95,0.00011232,2]
[15936,1714329066820,-500.0,0.00011232,2]
[15937,1714329066831,-500.0,0.00011232,2]
[15938,1714329066840,-500.0,0.00011232,2]
[15939,1714329066850,-14552.13,0.00011232,2]
[15941,1714329066869,-2200.29,0.00011232,2]
[15943,1714329066888,-318.321282,0.00011232,2]
[15944,1714329066898,-1126.74,0.00011232,2]
[15945,1714329066907,-318.321282,0.00011232,2]
[15946,1714329066917,-500.0,0.00011232,2]
[15947,1714329066927,-500.0,0.00011232,2]
[15948,1714329066937,-1004.16,0.00011232,2]
[15949,1714329066946,-500.0,0.00011232,2]
[15950,1714329066956,-500.0,0.00011232,2]
[15951,1714329066965,-1390.57,0.00011232,2]
[15952,1714329066975,-1952.42,0.00011232,2]
[15953,1714329066984,-886.26,0.00011232,2]
[15954,1714329066994,-500.0,0.00011232,2]
[15955,1714329067003,-318.321282,0.00011232,2]
[15956,1714329067013,-318.321282,0.00011232,2]
[15957,1714329067023,-500.0,0.00011232,2]
[15958,1714329067033,-500.0,0.00011232,2]
[15959,1714329067042,-1557.43,0.00011232,2]
[15960,1714329067052,-1448.6,0.00011232,2]
[15961,1714329067062,-500.0,0.00011232,2]
[15963,1714329067082,-1388.71,0.00011232,2]
[15965,1714329067101,-625.00559446,0.00011232,2]
[15966,1714329067111,-8208.53,0.00011232,2]
[15967,1714329067120,-1625.98,0.00011232,2]
[15968,1714329067130,-536.39,0.00011232,2]
[15969,1714329067145,-500.0,0.00011232,2]
[15970,1714329067163,-500.0,0.00011232,2]
[15971,1714329067177,-501.44371376,0.00011232,2]
[15972,1714329067194,-500.0,0.00011232,2]
[15973,1714329067204,-500.0,0.00011232,2]
[15974,1714329067213,-500.0,0.00011232,2]
[15975,1714329067223,-500.0,0.00011232,2]
[15976,1714329067232,-1055.94,0.00011232,2]
[15977,1714329067241,-1696.02,0.00011232,2]
[15979,1714329067260,-549.47,0.00011232,2]
[15981,1714329067280,-905.2,0.00011232,2]
[15983,1714329067299,-500.0,0.00011232,2]
[15985,1714329067320,-1028.65,0.00011232,2]
[15987,1714329067339,-500.0,0.00011232,2]
[15989,1714329067357,-1720.48,0.00011232,2]
[15991,1714329067376,-500.0,0.00011232,2]
[15993,1714329067397,-500.0,0.00011232,2]
[15995,1714329067416,-500.0,0.00011232,2]
[15997,1714329067435,-1333.24,0.00011232,2]
[15999,1714329067453,-767.86,0.00011232,2]
[16001,1714329067473,-3161.91,0.00011232,2]
[16003,1714329067491,-500.0,0.00011232,2]
[16005,1714329067509,-500.0,0.00011232,2]
[16006,1714329067591,-500.0,0.00011232,2]
[16007,1714329067601,-500.0,0.00011232,2]
[16008,1714329067610,-1495.49,0.00011232,2]
[16009,1714329067620,-15996.67,0.00011232,2]
[16010,1714329067629,-500.0,0.00011232,2]
[16011,1714329067638,-503.12209468,0.00011232,2]
[16013,1714329067657,-19514.18,0.00011232,2]
[16014,1714329067670,-29286.52,0.00011232,2]
[16015,1714329067679,-769.1,0.00011232,2]
[16016,1714329067688,-500.0,0.00011232,2]
[16017,1714329067697,-789.38,0.00011232,2]
[16018,1714329067707,-500.0,0.00011232,2]
[16019,1714329067716,-1682.07,0.00011232,2]
[16020,1714329067724,-500.0,0.00011232,2]
[16021,1714329067734,-2249.55,0.00011232,2]
[16022,1714329067744,-1366.6,0.00011232,2]
[16023,1714329067754,-500.0,0.00011232,2]
[16024,1714329067763,-1270.09,0.00011232,2]
[16025,1714329067773,-3202.06,0.00011232,2]
[16026,1714329067782,-3871.91,0.00011232,2]
[16027,1714329067792,-738.19,0.00011232,2]
[16028,1714329067801,-523.1728983,0.00011232,2]
[16029,1714329067810,-500.0,0.00011232,2]
[16030,1714329067819,-1052.48,0.00011232,2]
[16031,1714329067829,-859.1,0.00011232,2]
[16033,1714329067846,-151.0,0.00011232,2]
[16035,1714329067866,-151.0,0.00011232,2]
[16037,1714329067884,-500.0,0.00011232,2]
[16039,1714329067902,-500.0,0.00011232,2]
[16041,1714329067920,-1638.81,0.00011232,2]
[16043,1714329067938,-500.0,0.00011232,2]
[16045,1714329067956,-1607.959395,0.00011232,2]
[16047,1714329067974,-500.0,0.00011232,2]
[16049,1714329067993,-1297.13,0.00011232,2]
[16051,1714329068011,-6205.7,0.00011232,2]
[16052,1714329068020,-1613.15,0.00011232,2]
[16053,1714329068029,-500.0,0.00011232,2]
[16055,1714329068048,-10958.77,0.00011232,2]
[16057,1714329068067,-1395.16,0.00011232,2]
[16059,1714329068086,-504.01457232,0.00011232,2]
[16060,1714329068096,-151.0,0.00011232,2]
[16061,1714329068105,-500.0,0.00011232,2]
[16062,1714329068116,-151.0,0.00011232,2]
[16063,1714329068126,-1585.31,0.00011232,2]
[16064,1714329068135,-503.97754696,0.00011232,2]
[16065,1714329068145,-500.0,0.00011232,2]
[16066,1714329068155,-633.01,0.00011232,2]
[16067,1714329068165,-500.0,0.00011232,2]
[16069,1714329068185,-42065.6,0.00011232,2]
[16071,1714329068204,-500.0,0.00011232,2]
[16073,1714329068223,-1402.03,0.00011232,2]
[16075,1714329068244,-500.0,0.00011232,2]
[16076,1714329068253,-500.0,0.00011232,2]
[16077,1714329068263,-465.69183023,0.00011232,2]
[16079,1714329068283,-2602.9,0.00011232,2]
[16081,1714329068301,-500.0,0.00011232,2]
[16083,1714329068320,-500.0,0.00011232,2]
[16085,1714329068339,-1691.23,0.00011232,2]
[16087,1714329068359,-2082.9,0.00011232,2]
[16089,1714329068377,-786.39,0.00011232,2]
[16091,1714329068396,-500.0,0.00011232,2]
[16092,1714329068405,-500.0,0.00011232,2]
[16093,1714329068415,-978.2,0.00011232,2]
[16094,1714329068424,-500.0,0.00011232,2]
[16095,1714329068434,-500.0,0.00011232,2]
[16096,1714329068444,-4338.45,0.00011232,2]
[16097,1714329068453,-500.0,0.00011232,2]
[16098,1714329068463,-23869.88,0.00011232,2]
[16099,1714329068472,-1242.44,0.00011232,2]
[16100,1714329068482,-1489.55,0.00011232,2]
[16101,1714329068491,-500.0,0.00011232,2]
[16102,1714329068501,-500.0,0.00011232,2]
[16103,1714329068510,-1816.26,0.00011232,2]
[16104,1714329068520,-598.29,0.00011232,2]
[16105,1714329068530,-853.69,0.00011232,2]
[16106,1714329068539,-500.0,0.00011232,2]
[16107,1714329068548,-500.0,0.00011232,2]
[16108,1714329068558,-744.76,0.00011232,2]
[16109,1714329068567,-500.0,0.00011232,2]
[16110,1714329068577,-2315.27,0.00011232,2]
[16111,1714329068586,-1396.47,0.00011232,2]
[16112,1714329068596,-500.0,0.00011232,2]
[16113,1714329068605,-500.0,0.00011232,2]
[16114,1714329068614,-500.0,0.00011232,2]
[16115,1714329068624,-500.0,0.00011232,2]
[16116,1714329068633,-5437.95,0.00011232,2]
[16117,1714329068643,-1654.84,0.00011232,2]
[16118,1714329068652,-1002.92,0.00011232,2]
[16119,1714329068664,-610.86376436,0.00011232,2]
[16120,1714329068673,-557.45,0.00011232,2]
[16121,1714329068682,-500.0,0.00011232,2]
[16122,1714329068691,-500.0,0.00011232,2]
[16123,1714329068701,-937.09,0.00011232,2]
[16125,1714329068719,-1605.35,0.00011232,2]
[16127,1714329068738,-970.64,0.00011232,2]
[16128,1714329068747,-9867.65,0.00011232,2]
[16129,1714329068756,-1552.38,0.00011232,2]
[16130,1714329068766,-946.14,0.00011232,2]
[16131,1714329068775,-529.05,0.00011232,2]
[16132,1714329068784,-2313.26,0.00011232,2]
[16133,1714329068793,-500.0,0.00011232,2]
[16134,1714329068801,-752.06,0.00011232,2]
[16135,1714329068810,-2307.17,0.00011232,2]
[16137,1714329068828,-500.0,0.00011232,2]
[16138,1714329068838,-993.02,0.00011232,2]
[16139,1714329068847,-500.0,0.00011232,2]
[16140,1714329068855,-854.43,0.00011232,2]
[16141,1714329068864,-962.05,0.00011232,2]
[16142,1714329068873,-500.0,0.00011232,2]
[16143,1714329068882,-500.0,0.00011232,2]
[16145,1714329068900,-2010.03,0.00011232,2]
[16146,1714329068909,-500.0,0.00011232,2]
[16147,1714329068918,-500.0,0.00011232,2]
[16149,1714329068936,-883.46,0.00011232,2]
[16150,1714329068946,-500.0,0.00011232,2]
[16151,1714329068955,-3134.07,0.00011232,2]
[16153,1714329068973,-500.0,0.00011232,2]
[16155,1714329068991,-500.0,0.00011232,2]
[16156,1714329069000,-500.0,0.00011232,2]
[16157,1714329069009,-500.0,0.00011232,2]
[16158,1714329069018,-1380.46,0.00011232,2]
[16159,1714329069028,-753.21,0.00011232,2]
[16161,1714329069047,-500.0,0.00011232,2]
[16163,1714329069065,-4596.92,0.00011232,2]
[16164,1714329069074,-1293.28,0.00011232,2]
[16165,1714329069083,-633.32,0.00011232,2]
[16166,1714329069092,-546.48,0.00011232,2]
[16167,1714329069101,-900.78,0.00011232,2]
[16168,1714329069110,-500.0,0.00011232,2]
[16169,1714329069119,-502.97001856,0.00011232,2]
[16171,1714329069138,-3266.32,0.00011232,2]
[16173,1714329069157,-500.0,0.00011232,2]
[16175,1714329069176,-992.28,0.00011232,2]
[16177,1714329069194,-881.51,0.00011232,2]
[16178,1714329069203,-500.0,0.00011232,2]
[16179,1714329069212,-544.19,0.00011232,2]
[16180,1714329069221,-500.0,0.00011232,2]
[16181,1714329069230,-1077.92,0.00011232,2]
[16182,1714329069239,-570.7,0.00011232,2]
[16183,1714329069248,-500.0,0.00011232,2]
[16184,1714329069258,-1290.26,0.00011232,2]
[16185,1714329069267,-3414.29,0.00011232,2]
[16186,1714329069276,-2248.37,0.00011232,2]
[16187,1714329069285,-500.0,0.00011232,2]
[16188,1714329069298,-500.0,0.00011232,2]
[16189,1714329069307,-500.0,0.00011232,2]
[16190,1714329069316,-554.01,0.00011232,2]
[16191,1714329069325,-500.0,0.00011232,2]
[16192,1714329069335,-500.0,0.00011232,2]
[16193,1714329069344,-3322.95,0.00011232,2]
[16194,1714329069353,-500.0,0.00011232,2]
[16195,1714329069363,-500.0,0.00011232,2]
[16196,1714329069372,-961.79,0.00011232,2]
[16197,1714329069381,-500.0,0.00011232,2]
[16198,1714329069390,-1867.81,0.00011232,2]
[16199,1714329069399,-500.0,0.00011232,2]
[16200,1714329069408,-12060.68,0.00011232,2]
[16201,1714329069418,-2488.18,0.00011232,2]
[16202,1714329069427,-515.89,0.00011232,2]
[16203,1714329069436,-500.0,0.00011232,2]
[16204,1714329069445,-1331.85,0.00011232,2]
[16205,1714329069455,-500.0,0.00011232,2]
[16206,1714329069464,-500.0,0.00011232,2]
[16207,1714329069473,-610.99,0.00011232,2]
[16208,1714329069483,-813.03,0.00011232,2]
[16209,1714329069492,-500.0,0.00011232,2]
[16210,1714329069501,-500.0,0.00011232,2]
[16211,1714329069511,-1635.67,0.00011232,2]
[16212,1714329069520,-1112.39,0.00011232,2]
[16213,1714329069529,-2094.6,0.00011232,2]
[16214,1714329069538,-919.02,0.00011232,2]
[16215,1714329069547,-1384.84,0.00011232,2]
[16216,1714329069556,-500.0,0.00011232,2]
[16217,1714329069566,-500.0,0.00011232,2]
[16218,1714329069575,-3255.5,0.00011232,2]
[16219,1714329069585,-500.0,0.00011232,2]
[16220,1714329069595,-500.0,0.00011232,2]
[16221,1714329069606,-500.0,0.00011232,2]
[16222,1714329069616,-500.0,0.00011232,2]
[16223,1714329069625,-500.0,0.00011232,2]
[16224,1714329069634,-500.0,0.00011232,2]
[16225,1714329069643,-601.67,0.00011232,2]
[16227,1714329069663,-1318.58,0.00011232,2]
[16228,1714329069674,-1291.27,0.00011232,2]
[16229,1714329069683,-500.0,0.00011232,2]
[16230,1714329069692,-549.5,0.00011232,2]
[16231,1714329069702,-500.0,0.00011232,2]
[16232,1714329069711,-648.58,0.00011232,2]
[16233,1714329069720,-6907.46,0.00011232,2]
[16234,1714329069729,-5225.05,0.00011232,2]
[16235,1714329069741,-669.27,0.00011232,2]
[16236,1714329069751,-500.0,0.00011232,2]
[16237,1714329069760,-513.94,0.00011232,2]
[16238,1714329069769,-1176.65,0.00011232,2]
[16239,1714329069778,-500.0,0.00011232,2]
[16240,1714329069787,-3651.69,0.00011232,2]
[16241,1714329069796,-510.79,0.00011232,2]
[16242,1714329069806,-500.0,0.00011232,2]
[16243,1714329069815,-500.0,0.00011232,2]
[16244,1714329069824,-500.0,0.00011232,2]
[16245,1714329069834,-500.0,0.00011232,2]
[16246,1714329069843,-500.0,0.00011232,2]
[16247,1714329069852,-500.0,0.00011232,2]
[16248,1714329069861,-6369.57,0.00011232,2]
[16249,1714329069871,-500.0,0.00011232,2]
[16250,1714329069881,-500.0,0.00011232,2]
[16251,1714329069890,-500.0,0.00011232,2]
[16252,1714329069899,-943.47,0.00011232,2]
[16253,1714329069909,-1274.36,0.00011232,2]
[16254,1714329069918,-517.3,0.00011232,2]
[16255,1714329069928,-1866.42,0.00011232,2]
[16256,1714329069939,-3099.3,0.00011232,2]
[16257,1714329069950,-500.0,0.00011232,2]
[16258,1714329069959,-500.0,0.00011232,2]
[16259,1714329069969,-2707.94,0.00011232,2]
[16260,1714329069978,-821.68,0.00011232,2]
[16261,1714329069988,-1460.67,0.00011232,2]
[16262,1714329069998,-1115.92,0.00011232,2]
[16263,1714329070007,-2477.27,0.00011232,2]
[16264,1714329070016,-540.62,0.00011232,2]
[16265,1714329070026,-529.06,0.00011232,2]
[16266,1714329070035,-503.41759436,0.00011232,2]
[16267,1714329070044,-500.0,0.00011232,2]
[16268,1714329070053,-677.53,0.00011232,2]
[16269,1714329070063,-500.0,0.00011232,2]
[16270,1714329070072,-602.31,0.00011232,2]
[16271,1714329070081,-1835.72,0.00011232,2]
[16272,1714329070091,-500.0,0.00011232,2]
[16273,1714329070101,-658.86,0.00011232,2]
[16274,1714329070110,-540.14,0.00011232,2]
[16275,1714329070120,-560.3,0.00011232,2]
[16276,1714329070129,-1100.33,0.00011232,2]
[16277,1714329070138,-500.0,0.00011232,2]
[16278,1714329070147,-500.0,0.00011232,2]
[16279,1714329070157,-500.0,0.00011232,2]
[16280,1714329070166,-500.0,0.00011232,2]
[16281,1714329070175,-1000.0,0.00011301,2]
[16282,1714329070184,-898.0,0.000114,2]
[16283,1714329070193,-352.0,0.000114,2]
[16284,1714329070202,-1000.0,0.000114,2]
[16285,1714329070211,-224.76491086,0.00011436,2]
[16286,1714329070220,-456.16194059,0.000115,2]
[16287,1714329070229,-672.71,0.00011505,2]
[16288,1714329070239,-672.71,0.00011505,2]
[16289,1714329070249,-672.71,0.00011505,2]
[16290,1714329070258,-672.71,0.00011505,2]
[16291,1714329070267,-672.71,0.00011505,2]
[16292,1714329070276,-672.71,0.00011505,2]
[16293,1714329070284,-672.71,0.00011505,2]
[16294,1714329070293,-672.89,0.00011505,2]
[16295,1714329070302,-500.0,0.00011506,2]
[16296,1714329070311,-500.0,0.00011506,2]
[16297,1714329070320,-500.0,0.00011506,2]
[16298,1714329070330,-500.0,0.00011506,2]
[16299,1714329070340,-500.0,0.00011506,2]
[16300,1714329070349,-500.0,0.00011506,2]
[16301,1714329070359,-500.0,0.00011506,2]
[16302,1714329070368,-500.0,0.00011506,2]
[16303,1714329070378,-500.0,0.00011506,2]
[16304,1714329070388,-500.0,0.00011506,2]
[16305,1714329070397,-500.0,0.00011506,2]
[16306,1714329070407,-500.0,0.00011506,2]
[16307,1714329070417,-544.86759139,0.00011506,2]
[16308,1714329070426,-500.0,0.00011506,2]
[16309,1714329070436,-500.0,0.00011506,2]
[16310,1714329070446,-500.0,0.00011506,2]
[16311,1714329070455,-500.0,0.00011506,2]
[16312,1714329070465,-665.06,0.00011506,2]
[16313,1714329070475,-797.43,0.00011506,2]
[16314,1714329070485,-502.08163272,0.00011506,2]
[16315,1714329070494,-500.0,0.00011506,2]
[16316,1714329070503,-500.0,0.00011506,2]
[16317,1714329070513,-500.0,0.00011506,2]
[16318,1714329070522,-500.0,0.00011506,2]
[16319,1714329070532,-500.0,0.00011506,2]
[16320,1714329070541,-500.0,0.00011506,2]
[16321,1714329070550,-500.0,0.00011506,2]
[16323,1714329070569,-500.0,0.00011506,2]
[16325,1714329070588,-500.0,0.00011506,2]
[16327,1714329070606,-500.0,0.00011506,2]
[16329,1714329070625,-502.26946921,0.00011506,2]
[16331,1714329070643,-500.0,0.00011506,2]
[16333,1714329070664,-500.0,0.00011506,2]
[16335,1714329070686,-611.53,0.00011506,2]
[16337,1714329070704,-500.0,0.00011506,2]
[16339,1714329070724,-500.0,0.00011506,2]
[16341,1714329070744,-500.0,0.00011506,2]
[16342,1714329070753,-896.51,0.00011506,2]
[16343,1714329070762,-500.0,0.00011506,2]
[16344,1714329070771,-500.0,0.00011506,2]
[16345,1714329070781,-500.0,0.00011506,2]